bitfinex-derivatives/quotes_SOLF0:USTF0_20250202
["timestamp","ask_amount","ask_price","bid_price","bid_amount"]
[1738497325078,3.0245,209.46,209.24,0.03300653]
[1738497325278,3.0245,209.46,209.25,4.23729036]
[1738497325479,1.5419,209.46,209.33,0.03043562]
[1738497325784,3.0245,209.46,209.23,3.56]
[1738497325980,3.0245,209.46,209.37,0.03335408]
[1738497326186,3.0245,209.46,209.23,3.56]
[1738497326384,3.0245,209.46,209.39,0.03592655]
[1738497326679,6.2585,209.46,209.23,186.71211889]
[1738497326885,14.33,209.57,209.4,0.03169971]
[1738497327081,14.33,209.57,209.23,186.71211889]
[1738497327276,4.7753,209.49,209.24,4.22206134]
[1738497327479,4.7753,209.49,209.46,0.03360933]
[1738497327684,4.7753,209.49,209.24,185.13469085]
[1738497327890,4.7753,209.49,209.45,0.03233121]
[1738497328086,15.8582,209.57,209.24,185.13469085]
[1738497328288,15.8582,209.57,209.45,0.03644608]
[1738497328485,15.8582,209.57,209.24,185.13469085]
[1738497328680,14.33,209.54,209.49,2.39e-05]
[1738497329086,14.33,209.54,209.26,1.5143]
[1738497329280,14.33,209.54,209.27,4.20870503]
[1738497329485,4.7766,209.44,209.28,5.69550503]
[1738497329684,14.33,209.54,209.29,4.20870503]
[1738497329881,15.8582,209.57,209.28,1.4868]
[1738497330085,0.0330069,209.38,209.28,1.4868]
[1738497330282,0.84900563,209.56,209.28,1.4868]
[1738497330589,4.7772,209.41,209.3,4.7795]
[1738497330790,0.03269571,209.44,209.4,0.03113008]
[1738497331084,4.7768,209.43,209.28,1.4868]
[1738497331286,4.7768,209.43,209.4,0.03577012]
[1738497331485,4.7768,209.43,209.28,1.4868]
[1738497331688,0.03119377,209.38,209.31,4.7795]
[1738497331888,0.03119377,209.38,209.33,0.03419516]
[1738497332284,4.80919377,209.38,209.33,0.03419516]
[1738497332587,0.03119377,209.38,209.33,0.03419516]
[1738497333187,0.03119377,209.38,209.34,4.7787]
[1738497333389,0.03119377,209.38,209.33,0.03419516]
[1738497333986,0.03119377,209.38,209.36,4.7783]
[1738497334186,2.9483,209.46,209.33,0.03419516]
[1738497334590,4.7763,209.45,209.33,4.7789]
[1738497334884,4.7763,209.45,209.28,1.4868]
[1738497335085,1.4342,209.59,209.29,4.19072501]
[1738497335389,1.4624,209.55,209.34,0.03512131]
[1738497335590,1.4624,209.55,209.29,183.15211889]
[1738497335787,1.4624,209.55,209.42,0.03675382]
[1738497336293,4.777,209.42,209.29,183.15211889]
[1738497336686,1.4624,209.55,209.46,6.115e-05]
[1738497336992,1.4624,209.55,209.29,183.15211889]
[1738497336993,4.7772,209.42,209.29,183.15211889]
[1738497337485,4.7772,209.42,209.32,4.779]
[1738497337684,1.4624,209.55,209.29,183.15211889]
[1738497337890,0.03110501,209.39,209.35,0.03106054]
[1738497338190,1.4624,209.55,209.3,4.7797]
[1738497338191,17.85,209.48,209.3,4.7797]
[1738497338392,0.03254035,209.39,209.35,0.03644366]
[1738497338788,1.49,209.43,209.28,4.78]
[1738497338990,4.7783,209.36,209.35,9.133e-05]
[1738497339392,1.5599,209.38,209.18,2.856]
[1738497339591,1.4769,209.37,209.18,2.856]
[1738497339890,4.779,209.33,209.18,2.856]
[1738497340087,0.03588371,209.3,209.25,0.03508017]
[1738497341199,4.81578371,209.3,209.25,0.03508017]
[1738497341699,0.03588371,209.3,209.25,0.03508017]
[1738497342900,4.7802,209.28,209.25,0.03508017]
[1738497343098,0.03588371,209.3,209.25,0.03508017]
[1738497343399,4.7803,209.28,209.25,0.03508017]
[1738497343694,0.03588371,209.3,209.25,0.03508017]
[1738497344097,4.78,209.29,209.25,0.03508017]
[1738497344296,0.03588371,209.3,209.25,0.03508017]
[1738497344497,4.7804,209.27,209.25,0.03508017]
[1738497345101,0.03588371,209.3,209.25,0.03508017]
[1738497345507,0.03588371,209.3,209.25,4.81588017]
[1738497345709,0.03588371,209.3,209.25,0.03508017]
[1738497346003,0.03588371,209.3,209.28,4.7802]
[1738497346705,0.03588371,209.3,209.28,4.78]
[1738497347404,1.5326,209.42,209.29,4.7799]
[1738497347706,1.5326,209.42,209.23,3.5]
[1738497348005,1.5326,209.42,209.24,4.21199661]
[1738497348201,1.5326,209.42,209.25,4.21199661]
[1738497348406,1.5326,209.42,209.26,4.21199661]
[1738497348709,0.03012756,209.36,209.31,0.03596784]
[1738497354408,4.7791,209.33,209.31,0.03596784]
[1738497354802,4.7792,209.32,209.31,0.03596784]
[1738497355001,1.4747,209.32,209.25,4.7806]
[1738497355206,1.4747,209.32,209.26,4.22798921]
[1738497355502,1.4747,209.32,209.25,4.7806]
[1738497355808,1.4747,209.32,209.2,163.69020433]
[1738497355809,1.4747,209.32,209.26,4.23020012]
[1738497356006,4.7798,209.3,209.2,163.69020433]
[1738497356310,4.7798,209.3,209.27,0.03470771]
[1738497356611,4.7798,209.3,209.19,1.5037]
[1738497356806,4.7798,209.3,209.26,0.03550971]
[1738497357209,4.8125654,209.3,209.26,0.03550971]
[1738497357511,0.0327654,209.3,209.26,0.03550971]
[1738497358907,0.0327654,209.3,209.26,4.81590971]
[1738497359114,4.8124654,209.3,209.27,4.23963581]
[1738497359314,4.8124654,209.3,209.26,0.03550971]
[1738497359807,0.0327654,209.3,209.26,0.03550971]
[1738497360006,1.5211,209.29,209.18,168.47270433]
[1738497360206,4.7808,209.26,209.19,4.24346723]
[1738497360411,1.5211,209.29,209.2,4.24346723]
[1738497360715,1.5211,209.29,209.15,163.69020433]
[1738497361013,1.5211,209.29,209.16,4.24729831]
[1738497361312,0.03407708,209.24,209.2,0.03218547]
[1738497362211,0.03407708,209.24,209.1,183.15211889]
[1738497362413,0.03407708,209.24,209.11,4.25102538]
[1738497362713,4.7822,209.2,209.12,4.25102538]
[1738497363012,4.7822,209.2,209.13,4.25102538]
[1738497363213,1.5211,209.29,209.14,4.25102538]
[1738497363411,0.0359596,209.18,209.15,4.25102538]
[1738497363611,1.5211,209.29,209.16,4.25102538]
[1738497363809,0.03578871,209.19,209.17,4.25103464]
[1738497364010,1.5211,209.29,209.18,4.25103464]
[1738497364311,1.5211,209.29,209.23,4.7815]
[1738497364512,1.5211,209.29,209.07,1.5558]
[1738497364513,1.5211,209.29,209.07,14.30949553]
[1738497364712,1.5211,209.29,209.27,4.7805]
[1738497364911,1.4275,209.35,209.17,3.48]
[1738497365112,1.4275,209.35,209.18,5.68928698]
[1738497365315,0.03654108,209.3,209.26,0.03535387]
[1738497365508,0.03654108,209.3,209.29,4.7801]
[1738497365716,0.03654108,209.3,209.29,9.03028698]
[1738497365910,0.03654108,209.3,209.29,4.25018698]
[1738497366112,1.4463,209.39,209.29,4.2517386]
[1738497366316,1.4463,209.39,209.3,4.2517386]
[1738497366517,1.4463,209.39,209.35,4.7787]
[1738497366917,1.4784,209.55,209.19,12.75633049]
[1738497367211,1.4726,209.49,209.2,4.25185349]
[1738497367413,0.03312211,209.39,209.35,0.03051494]
[1738497367711,1.4726,209.49,209.2,12.75633049]
[1738497367712,1.4726,209.49,209.38,4.7781]
[1738497367917,1.4726,209.49,209.39,4.25185349]
[1738497368118,0.03435386,209.46,209.4,4.25185349]
[1738497368417,1.4726,209.49,209.42,0.0359794]
[1738497368716,0.03479166,209.45,209.43,4.25195441]
[1738497368912,0.03479166,209.45,209.3,4.938]
[1738497369115,0.03479166,209.45,209.42,0.0335671]
[1738497369309,1.4726,209.49,209.3,4.938]
[1738497369510,0.03134163,209.46,209.31,4.2517773]
[1738497369817,1.4726,209.49,209.41,0.03430906]
[1738497370016,1.4726,209.49,209.42,4.2517773]
[1738497370216,1.4726,209.49,209.43,4.28482821]
[1738497370416,0.03666872,209.47,209.43,0.03305091]
[1738497370718,0.03666872,209.47,209.44,4.24987314]
[1738497370909,0.03666872,209.47,209.43,0.03677267]
[1738497371212,0.03551182,209.47,209.44,4.24961772]
[1738497371417,0.03551182,209.47,209.43,0.03311217]
[1738497371612,1.434,209.54,209.44,4.24827541]
[1738497371819,0.03249499,209.47,209.45,4.7764]
[1738497372019,0.03249499,209.47,209.43,0.0353757]
[1738497372215,1.434,209.54,209.44,4.24819115]
[1738497372416,0.03226367,209.47,209.31,1.423]
[1738497372616,0.03226367,209.47,209.44,4.7766]
[1738497372919,0.03178992,209.48,209.37,0.03068303]
[1738497373113,0.03178992,209.48,209.43,4.7769]
[1738497373315,1.434,209.54,209.44,4.24788534]
[1738497373511,0.03071845,209.48,209.4,0.03220883]
[1738497373714,0.03071845,209.48,209.41,4.24683497]
[1738497373916,0.03071845,209.48,209.46,4.7762]
[1738497374218,0.03412778,209.49,209.46,4.7762]
[1738497374621,0.03412778,209.49,209.47,4.7759]
[1738497375316,0.03412778,209.49,209.45,0.03189622]
[1738497376620,4.80972778,209.49,209.45,0.03189622]
[1738497377012,0.03412778,209.49,209.45,0.03189622]
[1738497379922,0.03412778,209.49,209.46,4.7762]
[1738497380125,0.03412778,209.49,209.45,0.03189622]
[1738497380625,0.03412778,209.49,209.48,4.7758]
[1738497382127,0.03412778,209.49,209.46,4.7761]
[1738497382425,0.03412778,209.49,209.45,0.03189622]
[1738497382625,0.03412778,209.49,209.46,4.7763]
[1738497383021,0.03412778,209.49,209.45,0.03189622]
[1738497384026,0.03412778,209.49,209.48,4.7758]
[1738497386121,0.03412778,209.49,209.47,4.776]
[1738497386430,0.03412778,209.49,209.45,0.03189622]
[1738497387328,0.03412778,209.49,209.47,4.776]
[1738497388632,0.03412778,209.49,209.45,0.03189622]
[1738497388935,0.03412778,209.49,209.48,4.7758]
[1738497392733,0.03412778,209.49,209.45,0.03189622]
[1738497392933,0.03412778,209.49,209.46,4.7763]
[1738497393230,0.03412778,209.49,209.45,0.03189622]
[1738497393631,0.03412778,209.49,209.45,4.80819622]
[1738497393826,0.03412778,209.49,209.45,0.03189622]
[1738497394228,0.03412778,209.49,209.48,4.7758]
[1738497397030,0.03412778,209.49,209.47,4.776]
[1738497397232,0.03412778,209.49,209.45,0.03189622]
[1738497397433,4.7761,209.47,209.45,0.03189622]
[1738497397627,0.03412778,209.49,209.45,0.03189622]
[1738497397832,0.03412778,209.49,209.31,2.9733]
[1738497398032,14.33,209.52,209.32,4.2308183]
[1738497398229,14.33,209.52,209.34,4.7788]
[1738497398230,1.5555,209.51,209.34,4.7788]
[1738497398431,1.5555,209.51,209.31,2.9733]
[1738497398629,1.5555,209.51,209.32,4.23210461]
[1738497398928,1.5555,209.51,209.33,4.23210461]
[1738497399130,0.03155182,209.44,209.39,0.03183904]
[1738497399427,0.03155182,209.44,209.41,4.7774]
[1738497399935,0.03155182,209.44,209.39,0.03183904]
[1738497400434,0.03155182,209.44,209.4,4.7775]
[1738497400631,0.03155182,209.44,209.39,0.03183904]
[1738497400829,0.03155182,209.44,209.4,4.23280552]
[1738497401030,0.03155182,209.44,209.39,0.03183904]
[1738497401330,0.03155182,209.44,209.4,4.2328312]
[1738497401531,0.03155182,209.44,209.43,4.777]
[1738497402531,4.775,209.52,209.46,4.7761]
[1738497403026,4.7752,209.51,209.45,4.7765]
[1738497403431,4.7752,209.51,209.36,3.46]
[1738497403635,0.0359193,209.5,209.46,0.03175438]
[1738497403837,4.7752,209.51,209.36,3.46]
[1738497404034,0.03443481,209.5,209.46,0.0334081]
[1738497404234,4.7757,209.49,209.44,4.7766]
[1738497404435,0.03470319,209.5,209.46,0.03428135]
[1738497404735,1.5381,209.58,209.35,3.46]
[1738497404935,0.0308689,209.5,209.46,0.03447349]
[1738497405335,0.0308689,209.5,209.47,4.776]
[1738497405534,0.0308689,209.5,209.46,0.03447349]
[1738497405833,0.0308689,209.5,209.46,4.81057349]
[1738497406036,0.0308689,209.5,209.46,0.03447349]
[1738497406640,0.0308689,209.5,209.49,4.7756]
[1738497407534,0.0308689,209.5,209.46,0.03447349]
[1738497407838,0.0308689,209.5,209.47,9.02551187]
[1738497408041,0.0308689,209.5,209.46,0.03447349]
[1738497408241,0.0308689,209.5,209.48,4.7756]
[1738497408443,0.0308689,209.5,209.49,4.25848268]
[1738497409538,0.0308689,209.5,209.49,9.03408268]
[1738497410840,0.0308689,209.5,209.49,4.25848268]
[1738497411342,0.0308689,209.5,209.49,9.03408268]
[1738497412142,0.0308689,209.5,209.49,4.25848268]
[1738497412344,4.8062689,209.5,209.49,4.27390625]
[1738497412939,0.0308689,209.5,209.49,4.27390625]
[1738497414044,4.8062689,209.5,209.49,4.27390625]
[1738497414443,4.8062689,209.5,209.49,1.91210625]
[1738497415238,0.0308689,209.5,209.49,1.91210625]
[1738497416046,0.0308689,209.5,209.46,0.03447349]
[1738497417242,0.0308689,209.5,209.33,1.4548]
[1738497417441,1.5381,209.58,209.33,1.4548]
[1738497417644,0.84945327,209.57,209.33,1.4548]
[1738497418143,1.5381,209.58,209.33,1.4548]
[1738497418346,4.7749,209.52,209.46,4.7761]
[1738497418546,0.03161888,209.48,209.46,4.7761]
[1738497418847,0.03161888,209.48,209.43,0.03026847]
[1738497419442,0.03161888,209.48,209.47,4.776]
[1738497423148,0.03161888,209.48,209.43,0.03026847]
[1738497424155,0.03161888,209.48,209.47,4.776]
[1738497428554,1.5381,209.58,209.43,0.03026847]
[1738497428752,1.5381,209.58,209.4,1.5161]
[1738497429346,4.7743,209.55,209.4,1.5161]
[1738497429757,0.03590912,209.5,209.45,0.03095423]
[1738497430049,0.03590912,209.5,209.4,1.5161]
[1738497430349,0.03590912,209.5,209.45,0.0328503]
[1738497430548,0.03590912,209.5,209.49,4.7756]
[1738497430953,9.12e-06,209.5,209.49,4.7756]
[1738497433557,9.12e-06,209.5,209.49,8.2356]
[1738497461187,9.12e-06,209.5,209.49,4.7756]
[1738497463788,9.12e-06,209.5,209.45,0.0328503]
[1738497464491,9.12e-06,209.5,209.49,4.7756]
[1738497473193,9.12e-06,209.5,209.49,2.4134]
[1738497473692,9.12e-06,209.5,209.46,163.69020433]
[1738497474193,9.12e-06,209.5,209.48,4.7757]
[1738497474397,9.12e-06,209.5,209.46,163.69020433]
[1738497474596,9.12e-06,209.5,209.45,0.0328503]
[1738497475596,9.12e-06,209.5,209.49,4.7756]
[1738497476498,9.12e-06,209.5,209.47,4.7758]
[1738497476799,9.12e-06,209.5,209.45,0.0328503]
[1738497477697,9.12e-06,209.5,209.45,4.7765]
[1738497477900,9.12e-06,209.5,209.39,163.69020433]
[1738497479002,9.12e-06,209.5,209.42,0.03520394]
[1738497479303,9.12e-06,209.5,209.36,3.46]
[1738497479499,14.32,209.65,209.36,3.46]
[1738497479700,0.85147755,209.64,209.34,12.51046012]
[1738497479901,4.7743,209.55,209.38,4.778]
[1738497480202,1.9219,209.54,209.33,163.69020433]
[1738497480402,0.03250889,209.46,209.42,0.03305632]
[1738497480604,0.03250889,209.46,209.33,163.69020433]
[1738497480799,1.9219,209.54,209.33,163.69020433]
[1738497481000,16.2419,209.54,209.33,163.69020433]
[1738497481699,16.2419,209.54,209.41,0.03613281]
[1738497481899,0.03644573,209.46,209.41,0.03613281]
[1738497482104,0.03644573,209.46,209.41,0.03018251]
[1738497483203,4.7768,209.44,209.41,0.03018251]
[1738497483409,1.5251,209.43,209.41,0.03018251]
[1738497483802,1.5251,209.43,209.41,4.80748251]
[1738497483998,1.5251,209.43,209.41,0.03018251]
[1738497484419,0.03644573,209.46,209.41,0.03018251]
[1738497486009,4.7771,209.43,209.41,0.03018251]
[1738497486306,0.4406,209.42,209.41,0.03018251]
[1738497488205,0.03644573,209.46,209.41,0.03018251]
[1738497488601,0.03644573,209.46,209.42,4.777]
[1738497489206,4.81274573,209.46,209.41,0.03018251]
[1738497489706,4.7776,209.4,209.35,4.7788]
[1738497489897,4.7776,209.4,209.25,78.85596742]
[1738497490306,4.7776,209.4,209.25,82.31596742]
[1738497490701,1.9365,209.45,209.25,78.85596742]
[1738497490906,0.03453786,209.35,209.3,4.81319611]
[1738497491106,4.7781,209.38,209.3,4.7798]
[1738497491303,1.9365,209.45,209.25,78.85596742]
[1738497491603,0.03414433,209.35,209.3,0.0355303]
[1738497491809,0.03414433,209.35,209.27,4.7806]
[1738497492112,4.7788,209.36,209.28,4.7804]
[1738497492608,4.7789,209.35,209.28,4.7804]
[1738497493010,0.0328229,209.34,209.29,0.03163446]
[1738497493604,0.4755229,209.34,209.29,0.03163446]
[1738497493811,4.7802,209.29,209.21,4.7819]
[1738497494111,0.4427,209.34,209.18,262.59792671]
[1738497494509,4.7799,209.31,209.23,4.7815]
[1738497494908,0.03200875,209.29,209.25,0.03487624]
[1738497495216,4.81220875,209.29,209.25,0.03487624]
[1738497495411,0.03200875,209.29,209.25,0.03487624]
[1738497496108,4.81220875,209.29,209.25,0.03487624]
[1738497496407,0.03200875,209.29,209.25,0.03487624]
[1738497496910,4.81220875,209.29,209.25,0.03487624]
[1738497497413,0.03200875,209.29,209.25,0.03487624]
[1738497498613,4.81220875,209.29,209.25,0.03487624]
[1738497499513,0.03200875,209.29,209.25,0.03487624]
[1738497500413,4.81220875,209.29,209.25,0.03487624]
[1738497500911,4.7804,209.28,209.25,0.03487624]
[1738497501613,0.03200875,209.29,209.25,0.03487624]
[1738497501813,4.7808,209.26,209.25,0.03487624]
[1738497502014,0.03200875,209.29,209.12,1.5226]
[1738497502314,4.7829,209.17,209.11,4.7843]
[1738497502514,4.7829,209.17,209.05,1.4714]
[1738497502710,0.4139,209.25,209.05,1.4714]
[1738497503513,0.03494784,209.17,209.13,4.8193119]
[1738497503910,0.03494784,209.17,209.13,0.0355119]
[1738497504113,0.03494784,209.17,209.16,4.7831]
[1738497504419,194.0,209.32,209.14,3.46]
[1738497504420,0.4161,209.31,209.14,3.46]
[1738497504620,0.4161,209.31,209.15,2.912]
[1738497505320,4.7802,209.29,209.15,2.912]
[1738497505518,0.0333653,209.25,209.21,0.03369521]
[1738497506220,0.0333653,209.25,209.22,4.7817]
[1738497506422,0.0333653,209.25,209.21,0.03369521]
[1738497507222,0.0333653,209.25,209.23,4.7815]
[1738497507422,0.0333653,209.25,209.21,0.03369521]
[1738497508114,0.0333653,209.25,209.24,4.7813]
[1738497508420,0.0333653,209.25,209.21,0.03369521]
[1738497509620,0.0333653,209.25,209.21,4.81569521]
[1738497510628,0.0333653,209.25,209.21,0.03369521]
[1738497511828,0.0333653,209.25,209.06,8.0017]
[1738497512029,4.7825,209.19,209.13,4.7837]
[1738497512229,0.4142,209.29,209.06,8.0017]
[1738497512730,4.7819,209.22,209.12,4.784]
[1738497513029,0.03239492,209.2,209.15,0.0346621]
[1738497513229,4.7829,209.17,209.15,0.0346621]
[1738497513427,0.03239492,209.2,209.06,1.5115]
[1738497513631,0.4142,209.19,209.14,2.625e-05]
[1738497513834,4.7834,209.15,209.14,2.625e-05]
[1738497514029,17.78,209.18,209.01,1.4692]
[1738497514427,17.78,209.18,208.98,163.69020433]
[1738497514634,0.84923137,209.17,208.98,163.69020433]
[1738497514833,0.84923137,209.17,208.93,166.70440433]
[1738497515035,0.0362313,209.1,208.93,166.70440433]
[1738497515224,0.0362313,209.1,209.03,0.03566357]
[1738497515429,0.84923137,209.17,209.03,0.03566357]
[1738497515633,0.03634582,209.09,209.03,0.03566357]
[1738497515932,0.03634582,209.09,209.04,0.03158782]
[1738497516129,0.03634582,209.09,208.93,165.15940433]
[1738497516329,14.32,209.15,208.93,163.69020433]
[1738497516628,0.84883559,209.14,208.93,163.69020433]
[1738497517536,4.7863,209.02,209.01,5.767e-05]
[1738497518033,4.7878,208.96,208.88,6.3344]
[1738497518229,0.4172,209.05,208.85,3.0499]
[1738497518432,14.32,209.04,208.84,163.69020433]
[1738497518638,194.84818209,209.03,208.93,5.816e-05]
[1738497518934,0.03208885,208.97,208.93,5.816e-05]
[1738497519127,3.46,208.96,208.93,5.816e-05]
[1738497519331,4.7882,208.94,208.93,5.816e-05]
[1738497520032,4.81958885,208.97,208.93,5.816e-05]
[1738497520234,0.03208885,208.97,208.93,5.816e-05]
[1738497520536,4.788,208.95,208.93,5.816e-05]
[1738497521733,0.84778472,208.94,208.75,1.5005]
[1738497522037,0.84769189,208.93,208.75,1.5005]
[1738497522336,1.26489189,208.92,208.75,1.5005]
[1738497522535,0.84769189,208.91,208.75,1.5005]
[1738497522938,4.7915,208.8,208.75,1.5005]
[1738497523242,0.0367615,208.85,208.75,1.5005]
[1738497523435,0.84743195,208.91,208.75,1.53234445]
[1738497523836,4.7919,208.79,208.75,1.5005]
[1738497524041,4.7919,208.79,208.71,4.7934]
[1738497524042,0.03285923,208.82,208.71,4.7934]
[1738497524236,0.03285923,208.82,208.81,6.644e-05]
[1738497524539,0.84736504,208.91,208.68,1.4831]
[1738497524931,0.84732922,208.9,208.68,1.4831]
[1738497525132,0.84732922,208.89,208.7,4.7937]
[1738497525335,1.843,208.92,208.68,1.4831]
[1738497525541,0.03174014,208.82,208.77,0.03551884]
[1738497526040,3.46,208.86,208.68,1.4831]
[1738497526646,4.7927,208.76,208.68,6.2775]
[1738497526846,3.46,208.86,208.68,6.2775]
[1738497527245,0.03640295,208.79,208.68,6.2775]
[1738497527545,4.793,208.74,208.68,6.2775]
[1738497527746,0.03640295,208.79,208.68,1.4831]
[1738497527947,0.84708665,208.85,208.68,1.4831]
[1738497528548,0.03593698,208.76,208.58,1.5667]
[1738497528747,0.03593698,208.76,208.59,3.0908]
[1738497529042,0.8469469,208.82,208.59,7.8872]
[1738497529247,4.7952,208.65,208.59,3.0908]
[1738497530142,0.03484873,208.64,208.59,3.0908]
[1738497531848,4.7939,208.71,208.6,4.7962]
[1738497532042,4.7939,208.71,208.59,3.0908]
[1738497532043,3.46,208.78,208.59,3.0908]
[1738497532448,4.7944,208.68,208.61,4.7958]
[1738497532651,3.46,208.78,208.59,3.0908]
[1738497533147,0.03129011,208.71,208.66,0.03129108]
[1738497533543,0.03129011,208.71,208.59,3.0908]
[1738497533944,0.03129011,208.71,208.66,0.03211619]
[1738497534149,4.7945,208.67,208.66,0.03211619]
[1738497540252,4.7942,208.69,208.66,0.03211619]
[1738497540454,3.46,208.82,208.66,0.03211619]
[1738497540847,4.7936,208.71,208.66,4.7945]
[1738497541045,14.32,208.84,208.59,3.0908]
[1738497541648,4.82971466,208.74,208.59,3.0908]
[1738497541855,4.82971466,208.74,208.69,0.03359877]
[1738497542155,17.78,208.85,208.68,4.7942]
[1738497542451,0.03160472,208.74,208.69,0.03331122]
[1738497542652,17.78,208.85,208.66,4.7947]
[1738497542855,17.78,208.85,208.69,0.03334889]
[1738497543057,0.03181723,208.74,208.69,0.03334889]
[1738497543360,0.84754249,208.84,208.53,79.11985294]
[1738497543554,0.03461398,208.74,208.69,0.03370386]
[1738497543750,4.7938,208.7,208.69,0.03370386]
[1738497543952,0.03461398,208.74,208.56,3.46]
[1738497543953,17.78,208.85,208.56,3.46]
[1738497544152,4.7936,208.71,208.67,0.03455007]
[1738497544452,14.32,208.84,208.56,3.46]
[1738497544653,0.03431819,208.71,208.67,4.83018274]
[1738497544848,4.7929,208.74,208.67,0.03598274]
[1738497545053,4.7929,208.74,208.56,3.46]
[1738497545258,4.7926,208.75,208.56,3.46]
[1738497545559,3.46,208.85,208.56,3.46]
[1738497545758,17.78,208.85,208.56,3.46]
[1738497545953,17.78,208.85,208.68,4.7941]
[1738497546159,0.03486024,208.73,208.69,2.9577]
[1738497546362,1.5121,208.88,208.69,2.9577]
[1738497546662,9.5745,208.99,208.69,6.4177]
[1738497546860,7.9805,208.98,208.69,6.4177]
[1738497547055,4.5205,208.98,208.69,6.4177]
[1738497547560,4.7906,208.84,208.81,0.03101783]
[1738497547761,0.03591947,208.86,208.81,0.03101783]
[1738497547956,14.32,208.9,208.69,2.9577]
[1738497548161,0.03271791,208.86,208.81,0.03637988]
[1738497548454,14.32,208.9,208.81,0.03637988]
[1738497548660,4.791,208.82,208.81,7.988e-05]
[1738497551154,19.111,208.82,208.81,7.988e-05]
[1738497552567,4.791,208.82,208.81,7.988e-05]
[1738497553058,19.111,208.82,208.81,7.988e-05]
[1738497553962,19.9575757,208.82,208.81,7.988e-05]
[1738497554758,14.32,208.81,208.55,1.5078]
[1738497554957,14.32,208.79,208.55,1.5078]
[1738497555165,2.4216757,208.78,208.55,1.5078]
[1738497555365,0.8465757,208.77,208.55,1.5078]
[1738497555860,0.8465757,208.77,208.64,0.0359504]
[1738497556068,0.03344844,208.68,208.64,5.04e-05]
[1738497556263,3.46,208.69,208.55,1.5078]
[1738497556567,4.7961,208.6,208.55,1.5078]
[1738497557266,4.82943486,208.6,208.55,1.54258425]
[1738497557468,0.03333486,208.6,208.55,1.54258425]
[1738497558864,4.7969,208.57,208.55,1.54258425]
[1738497559565,4.7963,208.59,208.55,1.54258425]
[1738497559760,0.03333486,208.6,208.55,1.54258425]
[1738497560472,0.03333486,208.6,208.55,0.03478425]
[1738497560968,4.7969,208.57,208.55,0.03478425]
[1738497562169,0.03333486,208.6,208.55,0.03478425]
[1738497562470,0.03333486,208.6,208.55,8.425e-05]
[1738497562662,4.7967,208.57,208.55,8.425e-05]
[1738497564868,0.03333486,208.6,208.55,8.425e-05]
[1738497565968,4.7969,208.56,208.55,8.425e-05]
[1738497568674,0.03333486,208.6,208.55,8.425e-05]
[1738497571278,4.7963,208.59,208.55,8.425e-05]
[1738497571477,0.03333486,208.6,208.55,8.425e-05]
[1738497572178,4.7969,208.56,208.55,8.425e-05]
[1738497578582,4.7967,208.57,208.55,8.425e-05]
[1738497579477,4.7969,208.56,208.55,8.425e-05]
[1738497580082,0.03333486,208.6,208.55,8.425e-05]
[1738497581377,4.7962,208.59,208.55,8.425e-05]
[1738497581579,0.03333486,208.6,208.55,8.425e-05]
[1738497582475,0.03333486,208.6,208.59,4.7962]
[1738497582673,2.9581,208.74,208.59,4.7962]
[1738497582877,2.9581,208.74,208.56,1.4212]
[1738497583074,4.7947,208.66,208.6,4.796]
[1738497583381,4.7947,208.66,208.56,1.4212]
[1738497583579,2.9581,208.74,208.61,4.7957]
[1738497583777,4.7941,208.69,208.56,1.4212]
[1738497583974,4.7941,208.69,208.65,0.03363269]
[1738497584192,4.7939,208.7,208.56,1.4212]
[1738497584389,0.03163288,208.69,208.65,0.03525662]
[1738497584678,1.4295,208.82,208.67,4.7944]
[1738497584883,0.0362065,208.69,208.65,0.03609134]
[1738497585079,3.0467,208.85,208.65,0.03609134]
[1738497585282,4.7917,208.79,208.6,1.5718]
[1738497585788,51.72543969,208.91,208.75,4.7924]
[1738497586180,4.791,208.82,208.75,4.7924]
[1738497586379,4.791,208.82,208.81,0.03339942]
[1738497586777,51.72543969,208.91,208.74,1.4219]
[1738497587083,4.7918,208.79,208.74,1.4219]
[1738497587381,4.6242,208.92,208.74,1.4219]
[1738497587578,4.6242,208.92,208.74,1.45446831]
[1738497587881,0.03368185,208.79,208.74,1.4219]
[1738497588080,0.84548051,208.91,208.74,1.4219]
[1738497588279,4.6242,208.92,208.81,0.03541371]
[1738497588482,0.84548998,208.91,208.81,0.03541371]
[1738497588782,0.03128922,208.85,208.81,1.371e-05]